bitfinex/quotes_SOLUSD_20241013
["timestamp","ask_amount","ask_price","bid_price","bid_amount"]
[1728822403108,15.7617,147.78,147.73,1.35356669]
[1728822405115,15.7617,147.78,147.73,20.0]
[1728822405705,15.7617,147.78,147.72,4.8013668]
[1728822405898,15.7617,147.78,147.72,3.36483776]
[1728822411095,15.7617,147.78,147.71,20.0]
[1728822411299,15.7617,147.78,147.72,3.36949159]
[1728822411499,15.7617,147.78,147.71,20.0]
[1728822412802,15.7617,147.78,147.72,1.35361651]
[1728822413018,15.7617,147.78,147.73,3.37133104]
[1728822413325,15.7617,147.78,147.74,4.72485145]
[1728822413524,15.7617,147.78,147.75,3.37133104]
[1728822413702,15.7617,147.78,147.76,3.37133104]
[1728822413899,15.7617,147.78,147.73,3.37133104]
[1728822414203,15.7617,147.78,147.74,4.72480823]
[1728822414403,15.7617,147.78,147.75,3.37133104]
[1728822414697,6.2065,147.8,147.76,3.37133104]
[1728822414901,6.2065,147.8,147.77,3.37133104]
[1728822415117,6.2065,147.8,147.78,3.37133104]
[1728822415324,6.2065,147.8,147.73,3.37133104]
[1728822415526,6.2065,147.8,147.74,4.72480849]
[1728822415704,6.2065,147.8,147.75,3.37133104]
[1728822415907,6.2065,147.8,147.76,3.37133104]
[1728822416115,6.2065,147.8,147.72,1.35347749]
[1728822416318,6.2065,147.8,147.73,3.3754712]
[1728822416628,6.2065,147.8,147.74,4.72936545]
[1728822416815,6.2065,147.8,147.75,3.37588793]
[1728822417014,6.2065,147.8,147.76,3.37588793]
[1728822417217,6.2065,147.8,147.77,3.37588793]
[1728822417529,6.2065,147.8,147.78,3.37588793]
[1728822417705,6.2065,147.8,147.72,1.35347755]
[1728822417706,6.2065,147.8,147.73,3.37588793]
[1728822417907,6.2065,147.8,147.74,4.72936536]
[1728822418121,6.2065,147.8,147.75,3.37588793]
[1728822418426,6.2065,147.8,147.76,3.37588793]
[1728822418629,6.2065,147.8,147.77,3.37588793]
[1728822418812,6.2065,147.8,147.78,3.37588793]
[1728822419003,6.2065,147.8,147.72,3.37588793]
[1728822419212,6.2065,147.8,147.73,3.37588793]
[1728822419414,6.2065,147.8,147.74,4.72936521]
[1728822419724,6.2065,147.8,147.75,3.37588793]
[1728822420116,6.2065,147.8,147.76,3.37588793]
[1728822420449,6.2065,147.8,147.77,3.37588793]
[1728822420623,6.2065,147.8,147.72,3.37588793]
[1728822420815,12.9727,147.8,147.73,3.37588793]
[1728822421014,12.9727,147.8,147.74,3.37588793]
[1728822421243,12.9727,147.8,147.75,3.37588793]
[1728822421442,12.9727,147.8,147.76,3.37588793]
[1728822421619,12.9727,147.8,147.72,3.37588793]
[1728822421823,16.3922,147.78,147.73,3.37588793]
[1728822422031,16.3922,147.78,147.74,3.37588793]
[1728822422032,12.9603,147.77,147.74,3.37588793]
[1728822422337,6.7682,147.75,147.67,3.37588793]
[1728822422720,6.7682,147.75,147.68,3.37588793]
[1728822422921,6.7682,147.75,147.69,3.37588793]
[1728822423123,16.3922,147.74,147.7,3.37588793]
[1728822423428,16.3922,147.74,147.71,3.37588793]
[1728822423638,23.1609,147.74,147.65,3.37588793]
[1728822423821,6.1929,147.73,147.66,3.37588793]
[1728822424145,6.1929,147.73,147.67,3.37588793]
[1728822424322,6.1929,147.73,147.68,3.37588793]
[1728822424512,6.1929,147.73,147.69,3.37588793]
[1728822424718,6.1929,147.73,147.64,3.37588793]
[1728822424943,6.1929,147.73,147.65,3.37588793]
[1728822425137,6.1929,147.73,147.66,3.37588793]
[1728822425435,6.1929,147.73,147.67,3.37588793]
[1728822425644,6.1929,147.73,147.68,3.37588793]
[1728822425819,6.1929,147.73,147.65,23.776884]
[1728822426016,6.1929,147.73,147.66,20.0]
[1728822426222,6.1929,147.73,147.67,3.37628343]
[1728822426421,6.1929,147.73,147.68,3.37628343]
[1728822426645,6.1929,147.73,147.66,20.0]
[1728822426646,6.1929,147.73,147.67,3.37628343]
[1728822426836,6.1929,147.73,147.68,3.37628343]
[1728822427144,6.1929,147.73,147.67,3.37628343]
[1728822427318,6.1929,147.73,147.66,20.0]
[1728822431725,6.1929,147.73,147.64,20.0]
[1728822432044,6.7695,147.72,147.64,20.0]
[1728822433043,6.7695,147.72,147.63,4.81567312]
[1728822433245,6.77,147.71,147.6,20.0]
[1728822433549,6.77,147.71,147.59,11.9616]
[1728822433550,15.1514,147.71,147.59,11.9616]
[1728822433735,15.1514,147.71,147.59,16.76075118]
[1728822434247,6.3598,147.7,147.59,16.76075118]
[1728822434456,6.7723,147.66,147.59,4.79915118]
[1728822434750,15.1514,147.68,147.55,11.9616]
[1728822434927,6.7719,147.67,147.55,11.9616]
[1728822435748,6.7719,147.67,147.56,23.776884]
[1728822436043,6.7719,147.67,147.57,20.0]
[1728822439851,15.1514,147.68,147.58,1.35481818]
[1728822440059,21.9231,147.68,147.58,1.35481818]
[1728822442729,21.9231,147.68,147.57,20.0]
[1728822444048,21.9231,147.68,147.58,1.35481841]
[1728822444848,21.9231,147.68,147.57,20.0]
[1728822447870,6.7718,147.67,147.57,20.0]
[1728822448638,6.7718,147.67,147.58,1.35481825]
[1728822448937,6.7718,147.67,147.57,20.0]
[1728822450760,23.776884,147.67,147.57,20.0]
[1728822450964,6.3781,147.65,147.57,20.0]
[1728822452562,15.9226,147.64,147.57,20.0]
[1728822452789,15.9226,147.64,147.58,30.0]
[1728822453566,22.6958,147.64,147.58,30.0]
[1728822454157,22.6958,147.64,147.56,20.0]
[1728822454380,15.9226,147.64,147.58,20.0]
[1728822454858,15.9226,147.64,147.57,1.35503671]
[1728822455542,22.6959,147.64,147.58,1.35503432]
[1728822455948,22.6959,147.64,147.56,20.0]
[1728822456474,22.6959,147.64,147.56,24.89522587]
[1728822456764,22.6959,147.64,147.57,1.35503615]
[1728822457169,22.6959,147.64,147.56,24.89522587]
[1728822457549,22.6959,147.64,147.57,1.35503612]
[1728822458066,22.6959,147.64,147.56,24.89522587]
[1728822459063,22.6959,147.64,147.57,1.35503611]
[1728822459271,22.6959,147.64,147.58,20.0]
[1728822460962,6.7737,147.63,147.57,30.0]
[1728822461173,6.7737,147.63,147.56,4.89522587]
[1728822461469,6.7737,147.63,147.53,23.776884]
[1728822461662,6.7737,147.63,147.55,20.0]
[1728822462270,6.7737,147.63,147.54,20.0]
[1728822462767,6.7737,147.63,147.53,20.0]
[1728822463149,6.7737,147.63,147.55,20.0]
[1728822463757,6.7737,147.63,147.53,20.0]
[1728822464159,6.7737,147.63,147.55,20.0]
[1728822464769,6.7737,147.63,147.53,20.0]
[1728822465078,6.7737,147.63,147.55,20.0]
[1728822465870,6.7737,147.63,147.53,20.0]
[1728822466058,6.7737,147.63,147.55,20.0]
[1728822466847,6.7737,147.63,147.53,20.0]
[1728822467147,6.7737,147.63,147.55,20.0]
[1728822467547,6.7737,147.63,147.53,20.0]
[1728822468180,6.7737,147.63,147.55,20.0]
[1728822468974,6.7737,147.63,147.53,20.0]
[1728822469173,6.7737,147.63,147.55,20.0]
[1728822469349,6.7742,147.62,147.55,20.0]
[1728822469756,6.7742,147.62,147.53,20.0]
[1728822470076,6.7742,147.62,147.55,20.0]
[1728822470380,6.7742,147.62,147.52,23.776884]
[1728822470381,6.3781,147.61,147.52,23.776884]
[1728822471253,13.1531,147.61,147.51,22.79436939]
[1728822471453,22.1702,147.6,147.52,20.0]
[1728822471769,22.1702,147.6,147.51,4.84952805]
[1728822472074,22.1702,147.6,147.48,20.0]
[1728822472275,6.7758,147.59,147.47,43.45342249]
[1728822472573,6.7758,147.59,147.47,17.94484134]
[1728822473252,15.3951,147.6,147.47,22.798738]
[1728822473459,23.776884,147.59,147.47,22.798738]
[1728822473775,23.776884,147.59,147.48,20.0]
[1728822474367,6.7765,147.57,147.47,22.798738]
[1728822474572,6.7765,147.57,147.48,23.776884]
[1728822475974,6.7765,147.57,147.49,20.0]
[1728822476577,6.776,147.58,147.49,20.0]
[1728822479187,15.3951,147.6,147.51,20.0]
[1728822479394,15.3951,147.6,147.52,1.35531638]
[1728822479685,15.3951,147.6,147.53,23.776884]
[1728822479978,15.3951,147.6,147.54,21.35523684]
[1728822480364,15.3951,147.6,147.54,1.35523684]
[1728822480763,15.3951,147.6,147.53,23.776884]
[1728822480980,15.3951,147.6,147.54,20.0]
[1728822483176,15.3951,147.6,147.51,20.0]
[1728822483381,15.3951,147.6,147.53,20.0]
[1728822483586,15.3951,147.6,147.54,1.35530901]
[1728822485690,15.3951,147.6,147.53,20.0]
[1728822487489,15.3951,147.6,147.54,1.3553111]
[1728822489775,6.3781,147.61,147.54,1.3553111]
[1728822507502,6.3781,147.61,147.54,23.776884]
[1728822507688,6.3781,147.61,147.55,20.0]
[1728822508692,6.3781,147.61,147.56,1.35515876]
[1728822513293,6.3781,147.61,147.56,23.776884]
[1728822513698,6.3781,147.61,147.55,20.0]
[1728822514316,6.3781,147.61,147.54,23.776884]
[1728822514796,6.3781,147.61,147.55,20.0]
[1728822515292,6.3781,147.61,147.56,1.35506753]
[1728822518187,6.3781,147.61,147.56,1.35506335]
[1728822518920,6.3781,147.61,147.55,20.0]
[1728822521201,6.3781,147.61,147.56,1.35512082]
[1728822532620,6.3781,147.61,147.55,20.0]
[1728822532828,6.3781,147.61,147.56,1.35511815]
[1728822540934,15.3951,147.64,147.56,1.35511815]
[1728822541270,15.3951,147.64,147.6,20.0]
[1728822541830,15.3951,147.64,147.6,21.35465515]
[1728822542231,15.3951,147.64,147.6,20.0]
[1728822542632,15.3951,147.64,147.61,1.35465552]
[1728822545860,6.4192,147.65,147.61,1.35465552]
[1728822548336,6.4192,147.65,147.6,24.75526284]
[1728822550667,6.4192,147.65,147.61,1.35468954]
[1728822551653,6.4192,147.65,147.6,24.75526284]
[1728822552539,6.4192,147.65,147.61,1.35468528]
[1728822553846,6.4192,147.65,147.6,24.75526284]
[1728822559770,6.4192,147.65,147.61,1.35468612]
[1728822560341,6.4192,147.65,147.6,24.75526284]
[1728822560548,6.4192,147.65,147.61,1.35468506]
[1728822561443,16.4644,147.67,147.61,1.35468506]
[1728822562366,16.4644,147.67,147.62,23.776884]
[1728822562963,16.4644,147.67,147.61,23.776884]
[1728822563475,16.4644,147.67,147.62,20.0]
[1728822563966,16.4644,147.67,147.59,23.776884]
[1728822564172,16.4644,147.67,147.6,20.0]
[1728822566577,16.4644,147.67,147.61,1.35454744]
[1728822572075,16.4644,147.67,147.62,20.0]
[1728822572383,6.562,147.73,147.63,23.776884]
[1728822572555,29.7221,147.73,147.64,20.0]
[1728822572761,29.7221,147.73,147.65,1.35416801]
[1728822577082,22.953,147.73,147.66,23.776884]
[1728822577468,22.953,147.73,147.65,23.776884]
[1728822577881,22.953,147.73,147.66,21.35407369]
[1728822578070,22.953,147.73,147.66,20.0]
[1728822579583,29.7222,147.73,147.66,20.0]
[1728822580083,6.7696,147.72,147.66,20.0]
[1728822580280,6.7696,147.72,147.62,20.0]
[1728822580463,6.7696,147.72,147.64,43.776884]
[1728822580669,6.7696,147.72,147.64,23.776884]
[1728822580880,6.7696,147.72,147.65,20.0]
[1728822581790,29.7222,147.73,147.66,1.35418323]
[1728822581992,29.7222,147.73,147.65,20.0]
[1728822586891,29.7222,147.73,147.65,24.85446016]
[1728822597498,6.7695,147.72,147.65,24.85446016]
[1728822597698,6.7695,147.72,147.65,4.85446016]
[1728822597876,6.7695,147.72,147.63,23.776884]
[1728822598195,6.7695,147.72,147.64,20.0]
[1728822600878,29.4337,147.69,147.61,4.9263245]
[1728822601079,29.4337,147.69,147.57,11.9616]
[1728822602400,22.6626,147.69,147.58,24.4712]
[1728822602585,22.6626,147.69,147.6,20.0]
[1728822602792,22.6626,147.69,147.61,23.776884]
[1728822603190,22.6626,147.69,147.62,21.35447139]
[1728822603706,22.6626,147.69,147.64,20.0]
[1728822603904,22.6626,147.69,147.65,1.35432042]
[1728822604483,6.7696,147.72,147.65,1.35432042]
[1728822604484,16.4444,147.72,147.65,1.35432042]
[1728822605110,16.4444,147.72,147.67,20.0]
[1728822605292,16.4444,147.72,147.68,1.35403784]
[1728822606314,16.4444,147.72,147.67,20.0]
[1728822606607,16.4444,147.72,147.64,23.776884]
[1728822606822,23.214,147.72,147.63,20.0]
[1728822607189,6.7706,147.7,147.63,20.0]
[1728822607389,6.77,147.71,147.63,20.0]
[1728822608005,6.77,147.71,147.62,4.89142365]
[1728822608190,6.77,147.71,147.59,20.0]
[1728822608582,6.77,147.71,147.6,1.3544238]
[1728822609109,6.77,147.71,147.61,20.0]
[1728822609312,6.77,147.71,147.62,23.776884]
[1728822609605,6.77,147.71,147.63,20.0]
[1728822610001,6.7705,147.7,147.63,20.0]
[1728822612105,6.7701,147.71,147.63,20.0]
[1728822612417,16.4444,147.72,147.63,20.0]
[1728822612585,6.7704,147.7,147.63,20.0]
[1728822612989,16.4444,147.72,147.63,20.0]
[1728822612990,6.7701,147.71,147.63,20.0]
[1728822613392,6.7701,147.71,147.63,24.71828618]
[1728822613592,6.7706,147.7,147.58,16.4328]
[1728822613813,6.5504,147.69,147.59,23.776884]
[1728822614421,15.3911,147.68,147.59,23.776884]
[1728822614601,22.1626,147.68,147.58,16.78214304]
[1728822615214,22.1626,147.68,147.59,1.35468795]
[1728822615406,22.1626,147.68,147.58,16.78214304]
[1728822615801,22.1626,147.68,147.59,20.0]
[1728822616220,6.7721,147.67,147.59,20.0]
[1728822617426,22.1625,147.68,147.6,1.35468773]
[1728822617795,15.3911,147.68,147.6,1.35468773]
[1728822621133,15.3911,147.68,147.61,23.776884]
[1728822621428,15.3911,147.68,147.62,1.35438507]
[1728822622516,15.3911,147.68,147.61,1.35444677]
[1728822623337,15.3911,147.68,147.6,23.776884]
[1728822624735,15.3911,147.68,147.61,20.0]
[1728822625245,15.3911,147.68,147.62,1.35445133]
[1728822626438,15.3911,147.68,147.61,1.35445188]
[1728822628031,15.3911,147.68,147.59,23.776884]
[1728822628337,15.3911,147.68,147.61,23.776884]
[1728822629453,15.3911,147.68,147.62,20.0]
[1728822630646,22.1625,147.68,147.61,20.0]
[1728822636150,15.7796,147.65,147.58,4.82054304]
[1728822636326,6.7736,147.64,147.54,11.9616]
[1728822636531,6.7736,147.64,147.55,30.0]
[1728822636937,6.7736,147.64,147.56,1.35501523]
[1728822638854,6.7736,147.64,147.56,1.35501523]
[1728822639854,15.7796,147.65,147.56,1.35501523]
[1728822640038,15.7796,147.65,147.57,23.776884]
[1728822640343,15.7796,147.65,147.58,21.35481675]
[1728822642833,6.095,147.67,147.6,20.0]
[1728822643035,6.095,147.67,147.61,1.35457437]
[1728822643544,6.095,147.67,147.6,20.0]
[1728822644232,6.095,147.67,147.61,1.35457642]
[1728822648363,6.095,147.67,147.6,20.0]
[1728822649573,6.095,147.67,147.61,1.35457786]
[1728822650065,6.095,147.67,147.6,20.0]
[1728822653365,6.095,147.67,147.61,1.35457863]
[1728822654952,15.1844,147.69,147.63,20.0]
[1728822655148,15.1844,147.69,147.64,1.354369]
[1728822656050,6.3488,147.71,147.64,1.354369]
[1728822658555,6.3488,147.71,147.66,20.0]
[1728822658879,6.3488,147.71,147.67,1.35416077]
[1728822659455,6.3488,147.71,147.65,23.776884]
[1728822659655,6.3488,147.71,147.66,21.35414978]
[1728822659847,6.3488,147.71,147.66,1.35414978]
[1728822660356,16.639,147.73,147.67,23.776884]
[1728822661165,16.639,147.73,147.68,1.35397779]
[1728822661372,16.639,147.73,147.68,21.35397779]
[1728822662756,22.9878,147.83,147.69,35.738484]
[1728822662970,22.9878,147.83,147.72,20.0]
[1728822663174,6.7654,147.81,147.73,1.35359987]
[1728822664659,6.7654,147.81,147.72,20.0]
[1728822664858,6.7662,147.8,147.72,20.0]
[1728822665378,6.7662,147.8,147.73,1.35360341]
[1728822665559,6.7664,147.79,147.72,20.0]
[1728822665884,29.7548,147.78,147.7,20.0]
[1728822666182,29.7548,147.78,147.66,20.0]
[1728822666569,22.9878,147.78,147.7,20.0]
[1728822666964,22.9878,147.78,147.71,1.35368514]
[1728822667861,22.9878,147.78,147.68,20.0]
[1728822667862,22.9878,147.78,147.69,23.776884]
[1728822668178,22.9878,147.78,147.7,20.0]
[1728822669259,22.9878,147.78,147.71,1.35368632]
[1728822669680,22.9878,147.78,147.71,23.776884]
[1728822669982,22.9878,147.78,147.72,20.0]
[1728822670669,22.9878,147.78,147.73,1.35362085]
[1728822670892,22.9878,147.78,147.71,23.776884]
[1728822671072,22.9878,147.78,147.72,20.0]
[1728822671773,22.9878,147.78,147.72,21.35362078]
[1728822676075,22.9878,147.78,147.73,23.776884]
[1728822676273,16.639,147.78,147.74,21.35338438]
[1728822676482,16.0804,147.81,147.74,21.35338438]
[1728822679003,16.0804,147.81,147.76,20.0]
[1728822679207,16.0804,147.81,147.77,1.35321488]
[1728822680576,6.4089,147.82,147.77,1.35321488]
[1728822681390,16.0804,147.85,147.77,1.35321488]
[1728822681831,16.0804,147.85,147.78,23.776884]
[1728822681982,16.0804,147.85,147.79,20.0]
[1728822682178,16.0804,147.85,147.81,20.0]
[1728822682910,16.0804,147.85,147.79,20.0]
[1728822683204,16.0804,147.85,147.8,1.35283273]
[1728822684309,16.0804,147.85,147.8,23.776884]
[1728822684687,16.0804,147.85,147.81,20.0]
[1728822684889,16.0804,147.85,147.82,1.35275077]
[1728822685611,16.0804,147.85,147.81,20.0]
[1728822687698,16.0804,147.85,147.82,1.35271495]
[1728822688305,16.0804,147.85,147.81,20.0]
[1728822688891,16.0804,147.85,147.78,20.0]
[1728822689112,16.0804,147.85,147.76,24.83701838]
[1728822689913,16.0804,147.85,147.76,4.83701838]
[1728822690111,16.0804,147.85,147.74,20.0]
[1728822690312,16.0804,147.85,147.76,20.0]
[1728822691691,16.0804,147.85,147.78,20.0]
[1728822692710,22.844,147.85,147.78,20.0]
[1728822692893,22.844,147.85,147.79,1.35308934]
[1728822693903,22.844,147.85,147.78,20.0]
[1728822695208,16.0804,147.85,147.78,20.0]
[1728822695511,22.8441,147.85,147.78,20.0]
[1728822697511,22.8441,147.85,147.79,1.35307202]
[1728822697716,22.8441,147.85,147.78,20.0]
[1728822697900,16.0804,147.85,147.79,1.35299805]
[1728822700888,16.0804,147.85,147.78,24.85756437]
[1728822701406,16.0804,147.85,147.78,20.0]
[1728822701914,16.0804,147.85,147.79,1.35299082]
[1728822703224,16.0804,147.85,147.78,20.0]
[1728822705198,22.844,147.85,147.78,20.0]
[1728822705408,22.844,147.85,147.79,1.35299065]
[1728822706320,22.844,147.85,147.78,20.0]
[1728822706829,22.844,147.85,147.78,21.35299036]
[1728822706997,22.844,147.85,147.78,20.0]
[1728822707397,16.0804,147.85,147.78,20.0]
[1728822707616,16.0804,147.85,147.79,1.35298901]
[1728822707819,16.0804,147.85,147.78,20.0]
[1728822708232,22.844,147.85,147.78,20.0]
[1728822711614,16.0804,147.85,147.74,20.0]
[1728822711819,6.7665,147.79,147.69,11.9616]
[1728822712118,6.7664,147.79,147.69,11.9616]
[1728822712734,6.1859,147.78,147.69,11.9616]
[1728822713438,6.1859,147.78,147.7,20.0]
[1728822714035,6.1859,147.78,147.72,20.0]
[1728822714912,6.1859,147.78,147.73,1.35358653]
[1728822716338,6.1859,147.78,147.72,20.0]
[1728822716714,6.1859,147.78,147.73,1.35353236]
[1728822721846,6.7655,147.81,147.73,1.35353236]
[1728822724128,6.7655,147.81,147.72,24.79895869]
[1728822724947,6.7655,147.81,147.73,1.35347986]
[1728822738183,6.7659,147.8,147.73,1.35347986]
[1728822738976,6.7654,147.81,147.73,1.35347986]
[1728822739176,21.9224,147.82,147.76,23.776884]
[1728822739376,21.9224,147.82,147.77,21.35315704]
[1728822739674,23.1252,147.88,147.79,20.0]
[1728822739869,6.7627,147.87,147.8,1.35295188]
[1728822740060,23.1252,147.88,147.8,1.35295188]
[1728822740265,6.7633,147.86,147.8,1.35295188]
[1728822742446,6.7627,147.87,147.8,1.35295188]
[1728822742875,29.8875,147.88,147.8,1.35295188]
[1728822744661,6.763,147.87,147.79,20.0]
[1728822744858,23.1252,147.88,147.79,20.0]
[1728822745363,6.7638,147.85,147.79,20.0]
[1728822746183,23.1252,147.88,147.79,20.0]
[1728822746371,6.7639,147.85,147.75,20.0]
[1728822747674,6.7639,147.85,147.77,20.0]
[1728822748566,6.7632,147.86,147.78,1.35302073]
[1728822748863,6.7632,147.86,147.77,20.0]
[1728822749582,6.7632,147.86,147.78,1.35302012]
[1728822750967,6.7632,147.86,147.77,20.0]
[1728822759081,6.764,147.84,147.77,20.0]
[1728822759391,12.9415,147.84,147.77,20.0]
[1728822760902,6.7646,147.83,147.75,20.0]
[1728822761087,16.2449,147.82,147.74,4.7684108]
[1728822761287,16.2449,147.82,147.74,23.776884]
[1728822761699,16.2449,147.82,147.73,23.776884]
[1728822761904,16.2449,147.82,147.75,23.776884]
[1728822762109,16.2449,147.82,147.76,20.0]
[1728822763805,23.0098,147.82,147.72,24.89789011]
[1728822764501,23.0098,147.82,147.73,21.35338854]
[1728822765483,16.2449,147.82,147.75,20.0]
[1728822765682,16.2449,147.82,147.76,1.35331428]
[1728822770417,16.2449,147.82,147.75,20.0]
[1728822770615,16.2449,147.82,147.73,23.776884]
[1728822770785,6.7659,147.8,147.7,11.9616]
[1728822771294,16.2449,147.82,147.7,11.9616]
[1728822771484,6.7655,147.81,147.7,11.9616]
[1728822772102,6.7655,147.81,147.72,20.0]
[1728822774799,6.5778,147.8,147.72,20.0]
[1728822777195,6.7664,147.79,147.72,20.0]
[1728822778120,6.7664,147.79,147.73,1.35361112]
[1728822778303,6.5778,147.8,147.73,1.35361112]
[1728822778304,13.3437,147.8,147.73,1.35361112]
[1728822781222,6.5778,147.8,147.73,1.35361112]
[1728822781726,6.5778,147.8,147.74,20.0]
[1728822781910,6.5778,147.8,147.74,21.3534371]
[1728822782228,6.5778,147.8,147.74,1.3534371]
[1728822782812,6.5778,147.8,147.73,1.35343472]
[1728822783627,6.5778,147.8,147.75,20.0]
[1728822783825,6.5778,147.8,147.76,1.35325216]
[1728822784515,6.5778,147.8,147.74,23.776884]
[1728822784709,6.5778,147.8,147.75,21.35326203]
[1728822786951,16.2449,147.82,147.77,20.0]
[1728822787238,16.2449,147.82,147.78,1.35313449]
[1728822787437,16.2449,147.82,147.76,1.35314768]
[1728822788440,6.5778,147.84,147.76,1.35314768]
[1728822788613,6.5778,147.84,147.78,20.0]
[1728822788815,6.5778,147.84,147.79,1.35296847]
[1728822792750,6.5778,147.84,147.78,20.0]
[1728822803453,6.5778,147.84,147.72,20.0]
[1728822803752,16.9058,147.88,147.71,11.9616]
[1728822803753,15.6908,147.81,147.71,11.9616]
[1728822803957,6.7666,147.79,147.68,7.0745285]
[1728822804126,6.7666,147.79,147.68,11.79539862]
[1728822804525,6.7666,147.79,147.69,1.35365525]
[1728822805332,6.7666,147.79,147.7,23.776884]
[1728822805655,6.7666,147.79,147.71,21.35365628]
[1728822807437,6.7666,147.79,147.71,20.0]
[1728822808349,6.7672,147.78,147.71,20.0]
[1728822808562,6.7672,147.78,147.72,1.35365618]
[1728822811061,6.7672,147.78,147.71,20.0]
[1728822811251,6.7672,147.78,147.72,1.35372873]
[1728822811450,6.7664,147.79,147.72,1.35372873]
[1728822811757,13.0003,147.8,147.72,1.35372873]
[1728822814741,13.0003,147.8,147.71,20.0]
[1728822815060,13.0003,147.8,147.72,1.3535661]
[1728822815438,6.2341,147.8,147.72,1.3535661]
[1728822815758,6.2341,147.8,147.73,21.35345254]
[1728822816265,6.2341,147.8,147.73,1.35345254]
[1728822816856,6.2341,147.8,147.74,20.0]
[1728822817064,6.2341,147.8,147.75,1.35333349]
[1728822818267,6.2341,147.8,147.74,20.0]
[1728822821976,6.2341,147.8,147.75,1.35341295]
[1728822823985,6.2341,147.8,147.74,20.0]
[1728822825768,6.2341,147.8,147.75,1.3534135]
[1728822828567,6.2341,147.8,147.74,20.0]
[1728822830579,6.2341,147.8,147.75,1.35341485]
[1728822833569,6.2341,147.8,147.73,4.90160363]
[1728822833775,6.2341,147.8,147.74,21.35348407]
[1728822834281,6.2341,147.8,147.74,1.35348407]
[1728822834483,6.2341,147.8,147.72,23.776884]
[1728822834670,6.2341,147.8,147.73,21.35348421]
[1728822836459,6.2341,147.8,147.73,20.0]
[1728822836879,6.2341,147.8,147.74,1.35348665]
[1728822837891,6.2341,147.8,147.73,20.0]
[1728822840785,6.7665,147.79,147.7,24.86385789]
[1728822840962,6.7668,147.78,147.7,4.86385789]
[1728822841156,6.7668,147.78,147.68,20.0]
[1728822842993,6.2341,147.8,147.71,20.0]
[1728822842994,6.7664,147.79,147.71,20.0]
[1728822843297,6.7664,147.79,147.72,1.3536583]
[1728822844798,6.7664,147.79,147.71,20.0]
[1728822846479,6.7668,147.78,147.71,20.0]
[1728822847790,6.7668,147.78,147.72,1.35373814]
[1728822849793,6.7668,147.78,147.71,20.0]
[1728822850102,6.7668,147.78,147.72,1.35371982]
[1728822852694,6.7668,147.78,147.71,20.0]
[1728822853614,15.141,147.76,147.67,23.94362103]
[1728822853788,15.141,147.76,147.67,16.86998521]
[1728822853789,6.1796,147.75,147.67,16.86998521]
[1728822855035,6.1796,147.75,147.68,43.776884]
[1728822860620,6.1796,147.75,147.69,1.3539033]
[1728822861622,12.9482,147.75,147.68,43.776884]
[1728822861824,12.9482,147.75,147.68,20.0]
[1728822861825,6.7686,147.74,147.68,20.0]
[1728822862062,6.1796,147.75,147.65,20.0]
[1728822862337,6.7695,147.73,147.63,20.0]
[1728822862623,6.7695,147.73,147.61,11.9616]
[1728822862831,6.7687,147.74,147.62,1.35414316]
[1728822863009,6.7687,147.74,147.63,1.35417865]
[1728822863206,6.7687,147.74,147.61,16.90377068]
[1728822863813,6.7687,147.74,147.62,20.0]
[1728822864031,6.7687,147.74,147.64,20.0]
[1728822864237,6.7687,147.74,147.65,23.776884]
[1728822864716,6.7687,147.74,147.66,20.0]
[1728822865132,6.7687,147.74,147.67,1.35414199]